bitfinex/quotes_ETHUSD_20220115
["timestamp","ask_amount","ask_price","bid_price","bid_amount"]
[1642255918952,0.00170527,3309.3,3308.9,0.96825944]
[1642255919252,0.00113685,3309.2,3308.9,0.96825944]
[1642255919655,0.75739527,3309.3,3308.9,0.96825944]
[1642255920055,0.00113685,3309.2,3308.9,0.96825944]
[1642255921810,0.04659985,3309.2,3308.9,0.96825944]
[1642255923607,0.00113685,3309.2,3308.9,0.96825944]
[1642255925854,0.03565356,3309.1,3308.9,0.96825944]
[1642255926153,1.51258685,3309.2,3308.9,0.96825944]
[1642255926552,1.51258685,3309.2,3308.8,0.00113685]
[1642255926757,1.51258685,3309.2,3309.0,2.5844372]
[1642255926953,6.8,3309.1,3309.0,2.5844372]
[1642255927452,10.7571652,3309.1,3309.0,2.5844372]
[1642255927652,7.98685464,3309.1,3309.0,2.5844372]
[1642255927852,10.72246228,3309.1,3309.0,2.5844372]
[1642255928262,19.0459908,3308.9,3307.9,6.1513719]
[1642255928454,0.7559635,3308.4,3308.0,5.34453504]
[1642255928655,0.75595,3308.7,3308.0,1.62665355]
[1642255928656,0.045463,3308.6,3308.0,1.62665355]
[1642255928856,0.01233597,3308.1,3307.7,2.2509719]
[1642255929307,0.01233597,3308.1,3307.5,3.00129587]
[1642255929308,17.45,3307.8,3307.5,3.00129587]
[1642255929507,17.24706817,3307.7,3307.1,5.1688744]
[1642255929708,16.52654787,3307.7,3307.6,0.00113685]
[1642255929906,17.45,3307.6,3306.6,5.5912]
[1642255930105,17.45,3307.6,3307.1,0.00284211]
[1642255930307,19.71894,3307.6,3307.1,0.00284211]
[1642255930506,1.51263,3307.3,3307.1,0.00284211]
[1642255930814,1.00391719,3307.2,3307.1,0.00284211]
[1642255931210,1.51523309,3308.0,3307.2,7.4]
[1642255931410,3.02488,3308.7,3307.7,0.01289283]
[1642255931411,0.045463,3308.5,3307.7,0.01289283]
[1642255931606,21.9277,3309.6,3307.8,6.4]
[1642255931607,0.13819997,3309.4,3307.8,6.4]
[1642255931809,0.13819997,3309.4,3307.7,0.01289283]
[1642255931810,0.75588,3308.7,3308.6,4.86205772]
[1642255932007,1.5118,3309.2,3308.6,4.85]
[1642255932207,1.5118,3309.2,3308.4,0.045463]
[1642255932208,0.80224629,3310.8,3308.8,7.8]
[1642255932410,0.0764579,3309.8,3308.9,9.74151468]
[1642255932607,0.00113685,3309.7,3309.0,10.13617881]
[1642255932805,0.00113685,3309.7,3309.0,13.06157261]
[1642255933054,0.75551,3310.5,3309.1,8.11251465]
[1642255933356,0.75551,3310.5,3309.1,11.97406633]
[1642255933554,0.01892481,3310.3,3309.2,0.00170527]
[1642255933753,0.00511581,3310.4,3309.2,0.00170527]
[1642255933955,0.00397896,3310.2,3309.2,0.00170527]
[1642255934154,0.75556,3310.3,3309.2,0.00170527]
[1642255934155,0.00454739,3310.3,3309.2,0.00170527]
[1642255934354,0.00341054,3310.1,3309.2,0.00170527]
[1642255934554,0.00397896,3310.2,3309.2,0.00170527]
[1642255934753,4.580657,3310.9,3309.2,0.00170527]
[1642255934754,0.00284212,3310.0,3309.2,0.00170527]
[1642255934958,0.00284212,3310.0,3307.4,5.18089742]
[1642255934959,0.01276533,3309.3,3307.4,5.18089742]
[1642255935159,0.045463,3308.4,3308.0,5.2327]
[1642255935356,0.987963,3308.4,3308.0,5.2327]
[1642255935959,0.987963,3308.4,3308.1,1.25263564]
[1642255936356,12.65604,3308.3,3308.2,1.06730366]
[1642255938105,19.23954,3308.3,3308.2,1.06730366]
[1642255939304,17.45,3308.2,3308.0,4.78590742]
[1642255939505,18.40053934,3308.1,3308.0,4.78590742]
[1642255939707,2.6221779,3308.3,3308.0,4.78590742]
[1642255939906,1.51222,3308.3,3308.1,0.00813781]
[1642255940106,0.75604,3308.3,3308.0,4.78704426]
[1642255940307,0.75604,3308.3,3308.2,0.9241542]
[1642255940958,4.1398809,3308.1,3308.0,4.4195301]
[1642255941161,3.55,3308.1,3308.0,4.4195301]
[1642255941359,3.55,3308.1,3308.0,3.27290217]
[1642255941957,10.75,3308.1,3308.0,3.27290217]
[1642255942158,10.75,3308.1,3308.0,4.41646735]
[1642255943357,11.50603,3308.1,3308.0,4.41646735]
[1642255944802,0.75603,3308.1,3308.0,4.41646735]
[1642255945202,0.75596,3308.3,3308.0,4.41646735]
[1642255945402,0.75596,3308.3,3308.1,1.39442301]
[1642255946020,1.51383074,3308.5,3308.2,0.02267787]
[1642255946202,1.51383074,3308.5,3308.1,1.39442301]
[1642255946406,0.00113685,3308.4,3308.1,1.39442301]
[1642255946602,0.75599,3308.3,3308.0,4.41646735]
[1642255947103,0.00113685,3308.4,3308.0,4.41646735]
[1642255947304,15.95665992,3311.3,3308.1,8.05]
[1642255947305,17.45,3309.7,3308.1,8.05]
[1642255947503,0.75567,3309.6,3308.2,1.13772126]
[1642255947702,0.00170527,3308.7,3308.2,1.13885811]
[1642255947955,0.00170527,3308.7,3308.5,0.01247206]
[1642255948156,0.00113685,3308.6,3308.5,0.01247206]
[1642255948755,0.00113685,3308.6,3308.5,0.86238805]
[1642255948958,0.00113685,3308.6,3308.5,7.96238805]
[1642255949155,0.00113685,3308.6,3308.5,0.84991599]
[1642255949356,0.00113685,3308.6,3308.5,3.43469838]
[1642255951461,0.00113685,3308.6,3308.5,0.84991599]
[1642255951903,0.00113685,3308.6,3308.5,4.09991599]
[1642255952504,0.00113685,3308.6,3308.5,0.84991599]
[1642255953907,0.00113685,3308.6,3308.5,6.19991599]
[1642255954112,2.63834438,3309.6,3308.5,6.19991599]
[1642255954307,0.7557018,3309.8,3308.5,6.19991599]
[1642255954508,0.00568423,3309.6,3308.6,0.01225591]
[1642255954708,0.00568423,3309.6,3308.7,1.36158205]
[1642255954909,0.00511581,3309.5,3308.7,1.36158205]
[1642255955209,0.0073895,3309.9,3308.8,0.01123012]
[1642255955453,0.00454738,3309.4,3308.7,2.11710205]
[1642255955655,0.00682108,3309.8,3308.7,2.11710205]
[1642255955853,0.00397896,3309.3,3308.7,2.11710205]
[1642255956054,0.00625266,3309.7,3308.8,0.7555214]
[1642255956253,1.11944741,3310.3,3309.5,1.49492002]
[1642255956454,1.51299664,3310.4,3309.5,1.49492002]
[1642255956658,0.0096632,3310.3,3309.5,1.49492002]
[1642255956855,0.75562,3310.1,3308.6,4.42855591]
[1642255957055,0.755611,3310.2,3308.6,4.42855591]
[1642255957056,0.02806185,3309.9,3308.6,4.42855591]
[1642255957254,0.00795793,3310.0,3308.6,4.42855591]
[1642255957453,0.00682108,3309.8,3308.6,4.42855591]
[1642255957656,0.02900343,3309.8,3308.6,4.42855591]
[1642255957862,1.3503609,3309.1,3308.6,4.42855591]
[1642255958055,1.3503609,3309.1,3308.5,0.84991599]
[1642255958256,0.00227369,3309.0,3308.5,0.84991599]
[1642255958662,0.00170527,3308.9,3308.5,0.84991599]
[1642255959057,0.00113684,3308.8,3308.5,0.84991599]
[1642255959529,0.1219209,3309.7,3308.5,0.84991599]
[1642255959530,0.75583,3308.9,3308.5,0.84991599]
[1642255959728,0.00227369,3309.0,3308.5,0.84991599]
[1642255959926,0.00113684,3308.8,3308.5,0.84991599]
[1642255960127,0.00170527,3308.9,3308.5,0.84991599]
[1642255960429,0.00113684,3308.8,3308.5,0.84991599]
[1642255960627,0.00113684,3308.8,3308.6,1.09142116]
[1642255960829,1.20575268,3309.6,3308.6,1.09142116]
[1642255961029,1.12929478,3309.6,3308.6,1.09142116]
[1642255961230,0.00511581,3309.5,3308.6,1.09142116]
[1642255961629,0.00454738,3309.4,3308.6,1.09142116]
[1642255962030,0.00397896,3309.3,3308.6,1.09142116]
[1642255962229,0.00397896,3309.3,3308.5,0.84991599]
[1642255962429,0.00341054,3309.2,3308.5,0.84991599]
[1642255962830,0.00284211,3309.1,3308.5,0.84991599]
[1642255963259,0.00227369,3309.0,3308.5,0.84991599]
[1642255963657,0.00170527,3308.9,3308.5,2.1834871]
[1642255964057,0.00113684,3308.8,3308.5,2.1834871]
[1642255964257,0.00113684,3308.8,3308.2,4.20972395]
[1642255964461,0.00170527,3308.7,3308.3,0.93949082]
[1642255964858,0.045463,3309.2,3308.3,0.93949082]
[1642255964859,0.00113685,3308.6,3308.3,0.93949082]
[1642255965259,0.00397896,3309.1,3308.7,1.47867337]
[1642255965658,0.00341054,3309.0,3308.7,1.47867337]
[1642255965860,0.00341054,3309.0,3308.8,0.95685928]
[1642255966061,0.00284212,3308.9,3308.8,0.95685928]
[1642255968706,6.10284212,3308.9,3308.8,0.95685928]
[1642255968907,0.00284212,3308.9,3308.8,0.95685928]
[1642255969107,0.00284212,3308.9,3308.2,4.20972395]
[1642255969612,0.801223,3309.2,3308.4,1.22565382]
[1642255969613,0.00227369,3308.8,3308.4,1.22565382]
[1642255969808,3.669e-05,3309.2,3308.6,17.45]
[1642255970015,2.79916756,3310.8,3309.1,0.01218429]
[1642255970218,0.73065496,3310.9,3309.9,0.01251868]
[1642255970460,0.73065496,3310.9,3309.9,1.10131868]
[1642255970657,0.01136847,3310.8,3310.6,1.22565382]
[1642255970857,0.01136847,3310.8,3309.4,6.64376]
[1642255971057,0.01080005,3310.7,3309.4,5.8884]
[1642255971256,0.01080005,3310.7,3309.5,1.03797332]
[1642255971457,0.01023163,3310.6,3309.5,1.03797332]
[1642255971660,17.51626301,3310.5,3308.3,2.26480373]
[1642255971861,17.51626301,3310.5,3308.3,1.50921373]
[1642255971862,1.14472854,3309.2,3308.3,1.50921373]
[1642255972260,0.02979671,3309.0,3308.4,4.0118]
[1642255972464,1.51168,3308.8,3308.4,2.15854963]
[1642255972657,1.51168,3308.8,3307.8,3.06071446]
[1642255972658,9.2,3308.7,3307.8,3.06071446]
[1642255972860,0.045463,3308.6,3307.8,1.21134666]
[1642255973058,1.41782376,3308.5,3307.9,0.00341054]
[1642255973259,1.32312148,3308.0,3307.9,0.00341054]
[1642255973457,2.84463056,3308.6,3307.9,0.00341054]
[1642255973657,0.75601,3308.2,3307.9,0.00341054]
[1642255973858,3.71601063,3308.1,3307.9,0.00341054]
[1642255974058,12.40508822,3308.0,3307.9,0.00341054]
[1642255974307,17.45,3307.9,3307.8,3.12982204]
[1642255974511,17.45,3307.8,3307.6,2.58522969]
[1642255974707,17.45,3307.8,3307.6,1.70406296]
[1642255974708,21.81022836,3307.7,3307.6,1.70406296]
[1642255974907,21.81022836,3307.7,3307.6,1.66752458]
[1642255975104,23.29242448,3307.7,3307.6,0.78635785]
[1642255975304,23.30480234,3307.7,3307.6,0.78635785]
[1642255975503,23.30480234,3307.7,3307.6,0.05417098]
[1642255975704,0.7562832,3307.0,3306.2,16.8764]
[1642255976006,0.02359316,3306.8,3305.9,3.75161984]
[1642255976206,2.77455396,3306.9,3305.2,6.21]
[1642255976207,2.77455396,3306.9,3306.3,0.00909477]
[1642255976406,2.77455396,3306.9,3306.0,0.01080004]
[1642255976407,1.2225222,3306.7,3306.0,0.01080004]
[1642255976707,1.2225222,3306.7,3305.3,3.89031948]
[1642255976708,1.2225222,3306.7,3305.4,0.01421058]
[1642255977006,0.93981471,3306.5,3305.4,0.01421058]
[1642255977208,0.93981471,3306.5,3305.4,2.74727072]
[1642255977606,0.93981471,3306.5,3305.5,0.01364216]
[1642255978063,0.75637,3306.4,3305.5,0.01364216]
[1642255978260,0.02427492,3306.3,3305.5,0.01364216]
[1642255978461,0.93981471,3306.5,3305.4,0.01421058]
[1642255978662,0.93981471,3306.5,3305.5,0.01364216]
[1642255978860,0.93981471,3306.5,3305.4,0.01421058]
[1642255979061,1.20536512,3306.0,3305.4,0.01421058]
[1642255979260,0.93981471,3306.5,3305.4,0.01421058]
[1642255979461,1.16387534,3305.6,3305.4,0.01421058]
[1642255979662,3.0,3307.0,3305.4,0.01421058]
[1642255979863,3.0,3307.0,3305.5,0.01891124]
[1642255980071,3.0,3307.0,3305.4,3.33901295]
[1642255980264,0.75616,3307.3,3305.6,0.01307374]
[1642255980465,3.19391413,3307.2,3305.5,0.01364216]
[1642255980664,0.89603527,3305.7,3305.5,0.01364216]
[1642255981264,0.89603527,3305.7,3304.9,0.0170527]
[1642255981466,0.7566,3305.5,3304.9,0.0170527]
[1642255981715,0.02159041,3305.4,3304.9,0.0170527]
[1642255982005,3.83046014,3305.5,3304.1,10.84990399]
[1642255982006,3.15031804,3305.5,3304.3,0.02046324]
[1642255982202,3.15031804,3305.5,3304.1,7.606475]
[1642255982203,0.3408,3305.5,3304.2,0.02103167]
[1642255982404,0.75667,3305.4,3304.2,0.02103167]
[1642255982609,1.1767736,3304.4,3304.2,0.02103167]
[1642255982804,0.7566923,3305.3,3304.2,0.02103167]
[1642255983004,0.045463,3305.6,3304.2,0.02103167]
[1642255983205,1.51505969,3305.9,3304.3,17.45]
[1642255983406,3.0265,3307.3,3304.3,17.45]
[1642255983407,0.045462,3307.1,3305.0,0.00965224]
[1642255983606,0.045462,3307.1,3305.8,17.45]
[1642255983607,0.00686262,3307.0,3305.8,17.45]
[1642255983806,0.7562178,3307.4,3306.5,1.11405679]
[1642255984005,0.01224378,3308.5,3306.5,1.11405679]
[1642255984204,6.04974212,3308.4,3306.7,0.89216364]
[1642255984404,3.84326317,3308.4,3306.9,10.8]
[1642255984605,2.84659819,3308.4,3307.2,0.01220046]
[1642255984803,2.84659819,3308.4,3307.3,1.08959866]
[1642255985004,2.41593307,3308.4,3307.3,1.09585132]
[1642255985209,2.41593307,3308.4,3307.5,1.01879421]
[1642255985761,2.41593307,3308.4,3307.2,0.01220046]
[1642255985762,20.71266622,3308.3,3307.2,0.01220046]
[1642255985963,20.71266622,3308.3,3306.6,3.6006]
[1642255985964,0.84152527,3307.5,3306.6,3.6006]
[1642255986159,0.01946759,3307.4,3307.3,0.00170527]
[1642255986358,0.84152527,3307.5,3307.3,0.00170527]
[1642255986560,0.84152527,3307.5,3306.5,0.00625266]
[1642255986761,1.4687531,3307.1,3306.0,1.26907585]
[1642255986961,0.94439217,3307.0,3305.7,3.8091]
[1642255987162,0.94723429,3307.0,3306.1,0.00227369]
[1642255987363,0.0022737,3306.9,3306.1,0.00227369]
[1642255987766,1.51409624,3308.0,3306.2,17.45]
[1642255987962,2.41593307,3308.4,3306.3,20.14337181]
[1642255988162,1.12334006,3309.6,3307.3,9.7]
[1642255988363,0.0022737,3308.3,3307.6,0.045463]
[1642255988761,0.00170527,3308.2,3307.7,0.86948277]
[1642255989229,0.00113685,3308.1,3307.7,0.86948277]
[1642255989418,8.75,3307.9,3306.6,3.643]
[1642255989620,8.75,3307.9,3306.0,2.3229]
[1642255989621,0.01230708,3307.0,3306.2,3.7971]
[1642255989817,0.01230708,3307.0,3306.9,0.00454739]
[1642255990019,0.01982038,3306.9,3306.3,6.0485]
[1642255990325,0.76863408,3307.0,3306.4,0.00284212]
[1642255990521,0.76863408,3307.0,3306.3,2.04824532]
[1642255990522,16.49538377,3306.8,3306.3,1.96359822]
[1642255990718,2.7103973,3306.7,3306.3,1.09159817]
[1642255990921,17.45,3306.4,3305.2,1.5029331]
[1642255991118,0.75651,3306.1,3305.2,0.99653951]
[1642255991319,17.45,3305.9,3305.2,0.34735877]
[1642255991519,0.96499299,3305.7,3305.2,0.34735877]
[1642255991721,1.3709313,3305.5,3305.2,0.34735877]
[1642255991919,2.77992393,3305.4,3305.2,0.34735877]
[1642255992321,1.51522527,3305.6,3305.2,0.34735877]
[1642255992520,2.27206807,3305.6,3305.2,0.34735877]
[1642255992719,0.00113685,3305.5,3305.2,0.34735877]
[1642255992960,0.00113685,3305.5,3305.3,0.02897496]
[1642255993158,0.0121645,3306.7,3304.6,17.46240436]
[1642255993359,0.0121645,3306.7,3306.5,1.20854796]
[1642255993661,0.77027777,3306.7,3306.6,1.05021499]
[1642255993861,0.01386977,3306.7,3306.6,1.05021499]
[1642255994258,0.907,3306.5,3305.6,0.045463]
[1642255994461,0.31588501,3306.6,3305.1,0.01238896]
[1642255994463,0.907,3306.3,3305.1,0.01238896]
[1642255994664,0.907,3305.8,3303.9,9.3683]
[1642255994860,14.20681,3305.3,3305.2,0.00113685]
[1642255995159,15.11381,3305.3,3305.2,0.00113685]
[1642255995761,16.27892016,3305.3,3305.2,0.00113685]
[1642255995961,16.27892016,3305.3,3304.0,0.00795793]
[1642255996361,0.907,3305.1,3304.0,0.00795793]
[1642255996563,0.907,3304.9,3304.0,0.00795793]
[1642255996810,0.907,3304.2,3304.0,0.00795793]
[1642255997008,0.907,3304.1,3304.0,0.00795793]
[1642255997409,1.51533519,3305.3,3304.1,10.35]
[1642255997812,0.00170527,3305.7,3305.1,1.4307305]
[1642255998013,0.00170527,3305.7,3305.1,2.42600077]
[1642255998215,13.70113684,3305.6,3304.2,3.14632186]
[1642255998512,2.83638952,3305.5,3304.1,16.66822429]
[1642255998712,0.02463507,3305.4,3304.1,12.93762429]
[1642255998916,0.03145616,3305.4,3304.1,12.93762429]
[1642255999115,1.49423891,3305.3,3304.9,0.94081856]
[1642255999314,2.77903833,3305.2,3304.9,0.94081856]
[1642255999514,2.77903833,3305.2,3304.1,12.93762429]
[1642255999515,0.00568424,3305.2,3304.2,2.58762429]
[1642255999813,0.00511582,3305.1,3304.2,2.58762429]
[1642256000214,0.00454739,3305.0,3304.2,2.58762429]
[1642256000472,0.00454739,3305.0,3304.5,1.07927897]
[1642256000666,0.31588501,3306.6,3304.5,1.07927897]
[1642256000667,3.6553,3307.5,3305.0,17.4]
[1642256000870,0.045462,3306.7,3305.7,0.01210149]
[1642256001062,0.045462,3306.7,3305.7,1.02480149]
[1642256001263,0.75624,3307.5,3305.8,17.4]
[1642256001569,0.01364217,3307.4,3306.5,0.0123984]
[1642256001767,0.01364217,3307.4,3306.5,0.8352984]
[1642256001966,0.01307374,3307.3,3306.5,0.8229]
[1642256002165,0.01307374,3307.3,3306.7,0.045463]
[1642256002367,0.01286674,3308.9,3306.7,0.045463]
[1642256002368,1.51464663,3306.8,3306.7,0.045463]
[1642256002567,0.01286674,3308.9,3306.8,7.65]
[1642256002768,0.01286674,3308.9,3306.9,5.87875094]
[1642256002969,0.00909477,3308.8,3307.0,3.31381993]
[1642256003166,0.00909477,3308.8,3307.0,3.31495678]
[1642256003371,0.00852635,3308.7,3307.0,0.00113685]
[1642256003571,0.05107607,3308.1,3307.0,0.00113685]
[1642256003771,0.01218286,3307.3,3307.0,0.00113685]
[1642256003969,17.4,3307.0,3305.7,2.25439965]
[1642256004206,17.4,3307.0,3305.7,1.19189777]
[1642256004207,7.46087173,3306.4,3305.7,1.19189777]
[1642256004406,0.75655,3306.2,3305.7,0.20041431]
[1642256004607,1.3038958,3306.1,3305.8,0.00682108]
[1642256004806,2.2638668,3306.1,3305.8,3.02971289]
[1642256005005,2.2638668,3306.1,3305.8,3.02289181]
[1642256005208,2.2638668,3306.1,3305.9,0.00625266]
[1642256005407,0.959971,3306.1,3305.9,0.00625266]
[1642256005709,0.1506889,3309.0,3306.2,17.4]
[1642256005910,0.13819997,3309.0,3307.3,0.01294335]
[1642256006107,0.00341054,3307.8,3306.9,0.4226]
[1642256006507,1.08828317,3307.5,3307.0,0.00113685]
[1642256006708,0.02613333,3307.4,3307.0,0.00113685]
[1642256007007,0.00113685,3307.4,3307.0,0.00113685]
[1642256007310,0.00113685,3307.4,3306.4,0.00454739]
[1642256007509,1.23443516,3306.8,3306.4,0.00454739]
[1642256007709,0.86823546,3306.7,3306.4,0.00454739]
[1642256007960,0.86823546,3306.7,3306.3,3.88055735]
[1642256008153,0.86823546,3306.7,3306.4,0.00454739]
[1642256008754,0.75639,3306.6,3306.4,0.00454739]
[1642256008953,0.75639,3306.6,3306.0,0.00682108]
[1642256009355,1.62463866,3306.7,3306.0,0.00682108]
[1642256009356,0.82272301,3306.5,3306.0,0.00682108]
[1642256009554,0.82272301,3306.5,3305.2,0.01212974]
[1642256009555,0.75646,3306.5,3305.5,0.0096632]
[1642256009753,0.75646,3306.5,3305.3,0.01080005]
[1642256009953,3.36649257,3306.4,3305.3,0.01080005]
[1642256010153,0.7565682,3306.0,3305.3,0.01080005]
[1642256010354,0.75656,3305.8,3305.3,0.01080005]
[1642256010858,0.03167253,3305.6,3305.1,0.01193689]
[1642256011167,0.7566791,3305.5,3305.1,0.01193689]
[1642256011355,3.18314195,3305.4,3305.1,0.01193689]
[1642256011558,3.18314195,3305.4,3303.8,9.34451476]
[1642256011559,4.69667195,3305.4,3304.4,3.89647321]
[1642256011823,0.045463,3305.3,3304.4,3.5138227]
[1642256012018,0.05057881,3305.3,3304.4,3.5138227]
[1642256012221,1.0605254,3305.2,3304.4,3.5138227]
[1642256012619,0.00397897,3305.1,3304.4,3.5138227]
[1642256012821,1.51547298,3305.0,3303.9,3.02289181]
[1642256013022,1.51547298,3305.0,3303.4,3.79151586]
[1642256013023,1.5259758,3304.9,3303.4,0.0129011]
[1642256013222,0.05004243,3304.7,3304.0,0.00227369]
[1642256013421,0.045463,3304.8,3304.0,0.00227369]
[1642256013422,0.0477367,3304.8,3304.0,0.00227369]
[1642256013621,0.00113685,3304.6,3304.0,0.00227369]
[1642256013825,0.00170527,3304.7,3304.0,0.00227369]
[1642256014024,0.00170527,3304.7,3304.1,0.01250871]
[1642256014222,1.13011127,3304.6,3304.1,0.01250871]
[1642256014425,0.045463,3305.3,3304.1,0.01250871]
[1642256014426,0.8486743,3304.5,3304.4,15.4316949]
[1642256014622,0.8486743,3304.5,3304.4,15.4]
[1642256014822,0.6980743,3304.5,3304.4,15.41390436]
[1642256016773,0.6980743,3304.5,3304.4,0.01390436]
[1642256017274,6.0480743,3304.5,3304.4,0.00113685]
[1642256018073,0.6980743,3304.5,3304.3,0.01104431]
[1642256018273,0.6980743,3304.5,3304.3,2.72882341]
[1642256018474,0.6980743,3304.5,3304.4,0.00113685]
[1642256018878,0.84877632,3304.5,3304.4,0.00113685]
[1642256019210,0.84877632,3304.5,3304.4,6.05353685]
[1642256019409,1.94312362,3304.5,3304.4,7.58649085]
[1642256019808,0.84877632,3304.5,3304.4,10.39139941]
[1642256020011,0.84877632,3304.5,3304.4,16.14139941]
[1642256020209,0.84877632,3304.5,3304.4,14.60844541]
[1642256020610,0.49013396,3304.5,3304.4,19.75844541]
[1642256020810,0.04887354,3305.2,3304.5,8.65]
[1642256020811,1.45325179,3304.8,3304.5,8.65]
[1642256021011,1.45325179,3304.8,3304.6,9.05847926]
[1642256021212,1.45325179,3304.8,3304.6,6.0522]
[1642256022009,1.00168698,3304.7,3304.6,6.0522]
[1642256022956,1.00168698,3304.7,3304.6,11.3022]
[1642256023360,1.00168698,3304.7,3304.6,12.835154]
[1642256023760,1.00168698,3304.7,3304.6,7.585154]
[1642256023962,1.00168698,3304.7,3304.6,22.435154]
[1642256024162,1.00168698,3304.7,3304.6,21.65857]
[1642256024362,1.00168698,3304.7,3304.6,23.4894682]
[1642256025161,1.00168698,3304.7,3304.6,27.37053641]
[1642256025760,4.00168698,3304.7,3304.6,27.37053641]
[1642256027011,4.00168698,3304.7,3304.6,15.82053641]
[1642256027211,4.00168698,3304.7,3304.6,12.52053641]
[1642256028112,4.00168698,3304.7,3304.6,15.08311247]
[1642256028713,4.00168698,3304.7,3304.6,16.52692992]
[1642256029014,4.00168698,3304.7,3304.6,14.98968565]
[1642256029611,4.00168698,3304.7,3304.6,15.83932558]
[1642256030765,4.00168698,3304.7,3304.6,17.19464365]
[1642256030966,4.00168698,3304.7,3304.6,20.54464365]
[1642256031160,3.0,3304.7,3304.6,20.54464365]
[1642256031362,0.00284212,3305.1,3304.8,0.02110976]
[1642256031569,0.045463,3305.9,3304.9,35.8662945]
[1642256031769,1.56038498,3306.2,3305.0,3.68546839]
[1642256032063,0.00284211,3305.6,3305.0,3.68546839]
[1642256032462,0.045463,3306.2,3305.0,3.68546839]
[1642256032463,0.00227369,3305.5,3305.0,3.68546839]
[1642256032662,0.00227369,3305.5,3305.1,6.0513]
[1642256032863,0.00170527,3305.4,3305.2,3.02566909]
[1642256033264,0.00113684,3305.3,3305.2,3.02566909]
[1642256033463,0.00113684,3305.3,3305.2,10.58916489]
[1642256033865,0.00113684,3305.3,3305.2,7.5634958]
[1642256034064,0.00113684,3305.3,3305.2,6.0511]
[1642256034315,0.00113684,3305.3,3305.2,8.6383682]
[1642256034911,0.93425404,3305.3,3305.2,8.6383682]
[1642256035111,2.45399537,3305.3,3305.2,8.6383682]
[1642256035312,2.45399537,3305.3,3305.2,6.0511]
[1642256035512,0.93425404,3305.3,3305.2,6.0511]
[1642256035714,0.00113684,3305.3,3305.2,6.0511]
[1642256035912,3.00113684,3305.3,3305.2,20.72829434]
[1642256036112,2.08452283,3305.3,3305.2,20.72829434]
[1642256036312,1.35223577,3305.3,3305.2,17.8511]
[1642256036512,1.35223577,3305.3,3305.2,20.43816666]
[1642256036716,1.35223577,3305.3,3305.2,21.63205926]
[1642256036929,2.24836855,3305.3,3305.2,21.63205926]
[1642256037412,1.35223577,3305.3,3305.2,21.63205926]
[1642256038257,2.2716268,3305.3,3305.2,21.63205926]
[1642256039958,1.35223577,3305.3,3305.2,21.63205926]
[1642256040159,1.35223577,3305.3,3305.2,9.83205926]
[1642256040758,1.35223577,3305.3,3305.2,15.03205926]
[1642256040960,1.35223577,3305.3,3305.2,9.83205926]
[1642256041161,1.35223577,3305.3,3305.2,10.98555249]
[1642256042806,1.35223577,3305.3,3305.2,14.53555249]
[1642256043004,1.35223577,3305.3,3305.2,10.98555249]
[1642256044812,1.35223577,3305.3,3305.2,17.28555249]
[1642256045464,0.045463,3306.1,3305.3,29.01]
[1642256045658,0.045463,3306.3,3305.3,30.1099]
[1642256045858,0.00284212,3305.8,3305.5,0.75617]
[1642256046058,0.00284212,3305.8,3305.6,0.75615]
[1642256046257,1.32599968,3306.1,3305.6,1.5122972]
[1642256046258,0.0022737,3305.7,3305.6,1.5122972]
[1642256046458,0.0022737,3305.7,3305.6,0.7561472]
[1642256047058,0.0022737,3305.7,3305.6,7.5053002]
[1642256047561,0.0022737,3305.7,3305.6,4.7]
[1642256048360,0.0022737,3305.7,3305.2,8.71703323]
[1642256048560,0.03297767,3305.6,3305.2,7.20459323]
[1642256048759,0.00170527,3305.6,3305.2,7.20459323]
[1642256048960,0.00113685,3305.5,3305.2,7.20459323]
[1642256050708,0.03613544,3305.4,3305.2,7.20459323]
[1642256051107,0.00113685,3305.5,3305.2,7.20459323]
[1642256052508,0.00113685,3305.5,3305.2,6.0511]
[1642256053157,0.00113685,3305.5,3305.3,2.75991472]
[1642256053960,0.00113685,3305.5,3305.4,7.12915259]
[1642256054161,0.00113685,3305.5,3305.4,1.07915259]
[1642256054762,0.00113685,3305.5,3305.4,5.47915259]
[1642256055162,0.00113685,3305.5,3305.4,1.07915259]
[1642256056708,0.00113685,3305.5,3305.4,4.82915259]
[1642256060962,0.00113685,3305.5,3305.4,1.07915259]
[1642256061561,0.00113685,3305.5,3305.4,4.67915259]
[1642256061969,0.00113685,3305.5,3305.4,1.07915259]
[1642256064611,1.54763356,3305.5,3305.4,1.07915259]
[1642256067510,9.79763356,3305.5,3305.4,1.07915259]
[1642256067812,10.55420356,3305.5,3305.2,6.0511]
[1642256068071,13.05787485,3305.5,3305.2,6.0511]
[1642256068272,11.31079196,3305.5,3305.2,6.0511]
[1642256069070,13.87859803,3305.4,3305.2,6.0511]
[1642256069272,13.36199359,3305.3,3305.2,6.0511]
[1642256070273,3.61637076,3305.3,3305.2,6.0511]
[1642256070475,5.05437717,3305.3,3305.2,6.0511]
[1642256070673,1.10437717,3305.3,3305.2,6.0511]
[1642256070873,1.59309656,3305.5,3305.2,6.0511]
[1642256071078,1.54763356,3305.5,3305.2,6.0511]
[1642256071474,1.59309656,3305.5,3305.2,6.0511]
[1642256071913,1.59309656,3305.5,3305.3,0.91590053]
[1642256072515,2.34968166,3305.5,3305.3,0.91590053]
[1642256073515,2.34964656,3305.5,3305.3,0.91590053]
[1642256074115,1.59309656,3305.5,3305.3,0.91590053]
[1642256075117,1.54763356,3305.5,3305.3,0.91590053]
[1642256075318,0.00113685,3305.5,3305.3,0.91590053]
[1642256076660,1.32431541,3305.4,3305.3,0.91590053]
[1642256078360,4.77431541,3305.4,3305.3,0.91590053]
[1642256079314,7.34134671,3305.4,3305.2,6.0511]
[1642256079514,10.76235787,3305.3,3305.2,6.0511]
[1642256079913,8.25,3305.3,3305.2,6.0511]
[1642256080316,1.36977841,3305.4,3305.2,6.0511]
[1642256080714,3.84612981,3305.4,3305.2,6.0511]
[1642256080916,10.33648617,3305.3,3305.2,6.0511]
[1642256081214,7.85,3305.3,3305.2,6.0511]
[1642256081623,8.95757819,3305.3,3305.2,6.0511]
[1642256082016,7.85,3305.3,3305.2,6.0511]
[1642256082217,0.045463,3305.4,3305.2,6.0511]
[1642256082818,0.00113685,3305.5,3305.2,6.0511]
[1642256083068,0.00113685,3305.5,3305.3,0.01111731]
[1642256083262,0.00113685,3305.5,3305.4,4.87433083]
[1642256083660,0.00113685,3305.5,3305.4,1.12433083]
[1642256084461,0.045463,3305.6,3305.4,1.12433083]
[1642256084860,0.04716827,3305.6,3305.4,1.12433083]
[1642256091271,0.80369827,3305.6,3305.4,1.12433083]
[1642256091466,11.99094021,3305.5,3305.2,6.0511]
[1642256091766,0.08484346,3305.4,3305.2,6.0511]
[1642256091964,0.045463,3305.4,3305.2,6.0511]
[1642256092365,7.045463,3305.3,3305.2,6.0511]